fUST/lending_fUST_20250801
["ID","MTS","AMOUNT","RATE_DAILY","PERIOD"]
[376514352,1754004638208,-1219.5,0.00019452,2]
[376514353,1754004638218,-460.0,0.00019452,2]
[376514354,1754004638228,-460.0,0.00019452,2]
[376514355,1754004638240,-460.0,0.00019452,2]
[376514356,1754004638250,-460.0,0.00019452,2]
[376514357,1754004638259,-460.0,0.00019452,2]
[376514358,1754004638269,-460.0,0.00019452,2]
[376514359,1754004638278,-460.0,0.00019452,2]
[376514360,1754004638287,-460.0,0.00019452,2]
[376514361,1754004638297,-178.59315011,0.00019452,2]
[376514362,1754004638306,-460.0,0.00019452,2]
[376514363,1754004638316,-460.0,0.00019452,2]
[376514364,1754004638325,-584.09069785,0.00019452,2]
[376514365,1754004638334,-682.86,0.00019452,2]
[376514366,1754004638344,-996.42,0.00019452,2]
[376514367,1754004638353,-460.0,0.00019452,2]
[376514368,1754004638362,-460.0,0.00019452,2]
[376514369,1754004638372,-460.0,0.00019452,2]
[376514370,1754004638381,-460.0,0.00019452,2]
[376514371,1754004638390,-784.0774369,0.00019452,2]
[376514392,1754004639577,-538.83,0.00019178,2]
[376514394,1754004639587,-2955.7925631,0.00019452,2]
[376514395,1754004639596,-460.0,0.00019452,2]
[376514396,1754004639605,-460.0,0.00019452,2]
[376514398,1754004639615,-460.0,0.00019452,2]
[376514400,1754004639624,-460.0,0.00019452,2]
[376514402,1754004639634,-364.97425039,0.00019452,2]
[376514405,1754004639645,-95.02574961,0.00019452,2]
[376514407,1754004639654,-460.0,0.00019452,2]
[376514409,1754004639664,-846.61,0.00019452,2]
[376514411,1754004639673,-460.0,0.00019452,2]
[376514413,1754004639682,-460.0,0.00019452,2]
[376514415,1754004639691,-591.53504124,0.00019452,2]
[376514417,1754004639700,-460.0,0.00019452,2]
[376514419,1754004639709,-460.0,0.00019452,2]
[376514421,1754004639718,-366.07535684,0.00019452,2]
[376514423,1754004639728,-460.0,0.00019452,2]
[376514425,1754004639737,-460.0,0.00019452,2]
[376514427,1754004639747,-460.0,0.00019452,2]
[376514429,1754004639756,-460.0,0.00019452,2]
[376514431,1754004639766,-216.55786207,0.00019452,2]
[376514433,1754004639775,-460.0,0.00019452,2]
[376514435,1754004639784,-460.0,0.00019452,2]
[376514437,1754004639793,-460.0,0.00019452,2]
[376514439,1754004639803,-460.0,0.00019452,2]
[376514441,1754004639812,-460.0,0.00019452,2]
[376514443,1754004639821,-277.77521572,0.00019452,2]
[376514444,1754004639831,-460.0,0.00019452,2]
[376514446,1754004639840,-460.0,0.00019452,2]
[376514448,1754004639850,-326.23471881,0.00019452,2]
[376514450,1754004639859,-460.0,0.00019452,2]
[376514452,1754004639869,-460.0,0.00019452,2]
[376514454,1754004639878,-460.0,0.00019452,2]
[376514456,1754004639887,-460.0,0.00019452,2]
[376514458,1754004639896,-460.0,0.00019452,2]
[376514460,1754004639907,-1850.39,0.00019452,2]
[376514462,1754004639916,-873.75,0.00019452,2]
[376514464,1754004639926,-460.0,0.00019452,2]
[376514466,1754004639935,-460.0,0.00019452,2]
[376514468,1754004639944,-460.0,0.00019452,2]
[376514470,1754004639954,-821.02,0.00019452,2]
[376514472,1754004639963,-460.0,0.00019452,2]
[376514474,1754004639973,-460.0,0.00019452,2]
[376514476,1754004639982,-460.0,0.00019452,2]
[376514478,1754004639992,-460.0,0.00019452,2]
[376514480,1754004640001,-460.0,0.00019452,2]
[376514482,1754004640010,-538.83,0.00019452,2]
[376514484,1754004640020,-500.01948025,0.00019473,2]
[376514486,1754004640029,-233.27944302,0.00019473,2]
[376514488,1754004640038,-588.71,0.000195,2]
[376514490,1754004640048,-1649.69585923,0.00019682,2]
[376514492,1754004640057,-460.0,0.00019726,2]
[376514494,1754004640067,-2332.3,0.00019726,2]
[376514496,1754004640077,-361.07718283,0.00019726,2]
[376514522,1754004640317,-460.0,0.00019178,2]
[376514524,1754004640326,-98.92281717,0.00019726,2]
[376514526,1754004640335,-460.0,0.00019726,2]
[376514528,1754004640344,-460.0,0.00019726,2]
[376514530,1754004640354,-460.0,0.00019726,2]
[376514532,1754004640363,-460.0,0.00019726,2]
[376514534,1754004640372,-460.0,0.00019726,2]
[376514536,1754004640381,-465.41742292,0.00019726,2]
[376514538,1754004640391,-460.0,0.00019726,2]
[376514540,1754004640400,-568.87,0.00019726,2]
[376514542,1754004640409,-460.0,0.00019726,2]
[376514544,1754004640419,-460.0,0.00019726,2]
[376514546,1754004640428,-460.0,0.00019726,2]
[376514548,1754004640437,-484.08317247,0.00019726,2]
[376514550,1754004640446,-460.0,0.00019726,2]
[376514552,1754004640456,-171.097626,0.00019726,2]
[376514554,1754004640465,-460.0,0.00019726,2]
[376514556,1754004640474,-714.6,0.00019726,2]
[376514558,1754004640483,-460.0,0.00019726,2]
[376514560,1754004640493,-562.13,0.00019726,2]
[376514562,1754004640503,-460.0,0.00019726,2]
[376514564,1754004640512,-460.0,0.00019726,2]
[376514566,1754004640521,-460.0,0.00019726,2]
[376514567,1754004640530,-460.0,0.00019726,2]
[376514569,1754004640539,-460.0,0.00019726,2]
[376514571,1754004640549,-460.0,0.00019726,2]
[376514573,1754004640558,-460.0,0.00019726,2]
[376514575,1754004640567,-460.0,0.00019726,2]
[376514578,1754004640577,-495.61168537,0.00019726,2]
[376514580,1754004640586,-636.62,0.00019726,2]
[376514581,1754004640595,-460.0,0.00019726,2]
[376514583,1754004640604,-598.01864906,0.00019726,2]
[376514586,1754004640614,-460.0,0.00019726,2]
[376514587,1754004640623,-460.0,0.00019726,2]
[376514589,1754004640632,-460.0,0.00019726,2]
[376514591,1754004640642,-460.0,0.00019726,2]
[376514593,1754004640651,-460.0,0.00019726,2]
[376514595,1754004640660,-460.0,0.00019726,2]
[376514597,1754004640670,-460.0,0.00019726,2]
[376514599,1754004640679,-460.0,0.00019726,2]
[376514601,1754004640689,-460.0,0.00019726,2]
[376514603,1754004640699,-460.0,0.00019726,2]
[376514605,1754004640708,-460.0,0.00019726,2]
[376514607,1754004640717,-460.0,0.00019726,2]
[376514609,1754004640726,-460.0,0.00019726,2]
[376514611,1754004640736,-151.0,0.00019726,2]
[376514613,1754004640747,-460.0,0.00019726,2]
[376514615,1754004640756,-460.0,0.00019726,2]
[376514617,1754004640766,-460.0,0.00019726,2]
[376514619,1754004640776,-179.16,0.00019726,2]
[376514621,1754004640785,-460.0,0.00019726,2]
[376514623,1754004640795,-872.56,0.00019726,2]
[376514625,1754004640805,-460.0,0.00019726,2]
[376514627,1754004640814,-556.11980626,0.00019726,2]
[376514629,1754004640824,-1219.5,0.00019726,2]
[376514631,1754004640834,-460.0,0.00019726,2]
[376514633,1754004640843,-460.0,0.00019726,2]
[376514635,1754004640853,-460.0,0.00019726,2]
[376514637,1754004640862,-460.0,0.00019726,2]
[376514638,1754004640872,-460.0,0.00019726,2]
[376514640,1754004640882,-460.0,0.00019726,2]
[376514641,1754004640891,-460.0,0.00019726,2]
[376514642,1754004640902,-460.0,0.00019726,2]
[376514645,1754004640912,-460.0,0.00019726,2]
[376514646,1754004640923,-682.86,0.00019726,2]
[376514648,1754004640932,-996.42,0.00019726,2]
[376514650,1754004640941,-460.0,0.00019726,2]
[376514651,1754004640951,-460.0,0.00019726,2]
[376514652,1754004640960,-460.0,0.00019726,2]
[376514654,1754004640970,-3739.87,0.00019726,2]
[376514656,1754004640979,-460.0,0.00019726,2]
[376514657,1754004640989,-460.0,0.00019726,2]
[376514658,1754004641000,-460.0,0.00019726,2]
[376514659,1754004641010,-460.0,0.00019726,2]
[376514660,1754004641020,-846.61,0.00019726,2]
[376514661,1754004641030,-460.0,0.00019726,2]
[376514662,1754004641040,-460.0,0.00019726,2]
[376514663,1754004641049,-391.78928493,0.00019726,2]
[376514664,1754004641058,-151.0,0.00019726,2]
[376514665,1754004641068,-151.0,0.00019726,2]
[376514666,1754004641078,-460.0,0.00019726,2]
[376514667,1754004641088,-460.0,0.00019726,2]
[376514668,1754004641097,-460.0,0.00019726,2]
[376514669,1754004641107,-460.0,0.00019726,2]
[376514670,1754004641116,-460.0,0.00019726,2]
[376514671,1754004641125,-460.0,0.00019726,2]
[376514672,1754004641135,-460.0,0.00019726,2]
[376514673,1754004641144,-460.0,0.00019726,2]
[376514674,1754004641154,-1850.39,0.00019726,2]
[376514675,1754004641163,-873.75,0.00019726,2]
[376514676,1754004641173,-460.0,0.00019726,2]
[376514677,1754004641182,-821.02,0.00019726,2]
[376514678,1754004641192,-460.0,0.00019726,2]
[376514679,1754004641201,-460.0,0.00019726,2]
[376514680,1754004641211,-538.83,0.00019726,2]
[376514681,1754004641221,-179.74835231,0.00019845,2]
[376514682,1754004641232,-151.0,0.000199,2]
[376514683,1754004641242,-151.0,0.000199,2]
[376514684,1754004641253,-171.66856868,0.00019906,2]
[376514685,1754004641262,-2332.3,0.0002,2]
[376514686,1754004641273,-514.3,0.0002,2]
[376514687,1754004641282,-460.0,0.0002,2]
[376514688,1754004641292,-540.31139142,0.0002,2]
[376514689,1754004641302,-460.0,0.0002,2]
[376514690,1754004641312,-568.87,0.0002,2]
[376514691,1754004641322,-714.6,0.0002,2]
[376514692,1754004641331,-460.0,0.0002,2]
[376514693,1754004641341,-460.0,0.0002,2]
[376514694,1754004641350,-467.46,0.0002,2]
[376514695,1754004641359,-636.62,0.0002,2]
[376514696,1754004641369,-460.0,0.0002,2]
[376514697,1754004641378,-460.0,0.0002,2]
[376514698,1754004641388,-460.0,0.0002,2]
[376514699,1754004641397,-496.53,0.0002,2]
[376514700,1754004641407,-460.0,0.0002,2]
[376514701,1754004641416,-460.0,0.0002,2]
[376514702,1754004641425,-460.0,0.0002,2]
[376514703,1754004641435,-460.0,0.0002,2]
[376514704,1754004641444,-460.0,0.0002,2]
[376514705,1754004641454,-283.1817611,0.0002,2]
[376514706,1754004641463,-460.0,0.0002,2]
[376514707,1754004641473,-872.56,0.0002,2]
[376514708,1754004641482,-460.0,0.0002,2]
[376514709,1754004641492,-1219.5,0.0002,2]
[376514710,1754004641502,-460.0,0.0002,2]
[376514711,1754004641512,-460.0,0.0002,2]
[376514712,1754004641521,-460.0,0.0002,2]
[376514713,1754004641530,-460.0,0.0002,2]
[376514714,1754004641539,-565.72,0.0002,2]
[376514715,1754004641548,-460.0,0.0002,2]
[376514716,1754004641558,-682.86,0.0002,2]
[376514717,1754004641567,-996.42,0.0002,2]
[376514718,1754004641576,-460.0,0.0002,2]
[376514719,1754004641586,-460.0,0.0002,2]
[376514720,1754004641595,-573.19290859,0.0002,2]
[376514721,1754004641604,-3739.87,0.0002,2]
[376514722,1754004641614,-460.0,0.0002,2]
[376514723,1754004641623,-460.0,0.0002,2]
[376514724,1754004641633,-460.0,0.0002,2]
[376514725,1754004641643,-419.13,0.0002,2]
[376514726,1754004641652,-846.61,0.0002,2]
[376514727,1754004641661,-460.0,0.0002,2]
[376514728,1754004641671,-460.0,0.0002,2]
[376514729,1754004641680,-460.0,0.0002,2]
[376514730,1754004641689,-460.0,0.0002,2]
[376514731,1754004641699,-460.0,0.0002,2]
[376514732,1754004641708,-460.0,0.0002,2]
[376514733,1754004641717,-566.95,0.0002,2]
[376514734,1754004641727,-460.0,0.0002,2]
[376514735,1754004641736,-151.0,0.0002,2]
[376514736,1754004641745,-1850.39,0.0002,2]
[376514737,1754004641754,-873.75,0.0002,2]
[376514738,1754004641764,-821.02,0.0002,2]
[376514739,1754004641773,-460.0,0.0002,2]
[376514740,1754004641782,-538.83,0.0002,2]
[376514741,1754004641791,-151.0,0.0002,2]
[376514742,1754004641800,-500.0,0.00020077,2]
[376514743,1754004641810,-151.0,0.00020105,2]
[376514744,1754004641820,-151.0,0.00020105,2]
[376514745,1754004641829,-151.0,0.00020105,2]
[376514746,1754004641839,-151.0,0.00020105,2]
[376514747,1754004641848,-151.0,0.00020105,2]
[376514748,1754004641858,-151.0,0.00020105,2]
[376514749,1754004641867,-151.0,0.00020105,2]
[376514750,1754004641877,-151.0,0.00020105,2]
[376514751,1754004641886,-151.0,0.00020105,2]
[376514752,1754004641896,-201.36436749,0.00020105,2]
[376514753,1754004641905,-151.0,0.00020105,2]
[376514754,1754004641915,-253.81713,0.00020105,2]
[376514755,1754004641924,-232.31808377,0.00020121,2]
[376514756,1754004641934,-160.0,0.00020176,2]
[376514757,1754004641944,-12642.0599901,0.00020176,2]
[376514758,1754004641954,-325.927296,0.00020187,2]
[376514759,1754004641963,-2332.3,0.00020273,2]
[376514760,1754004641972,-460.0,0.00020273,2]
[376514761,1754004641982,-568.87,0.00020273,2]
[376514762,1754004641991,-714.6,0.00020273,2]
[376514763,1754004642002,-369.58087759,0.00020273,2]
[376514764,1754004642088,-90.41912241,0.00020273,2]
[376514765,1754004642097,-460.0,0.00020273,2]
[376514766,1754004642109,-636.62,0.00020273,2]
[376514767,1754004642119,-460.0,0.00020273,2]
[376514768,1754004642128,-460.0,0.00020273,2]
[376514769,1754004642138,-460.0,0.00020273,2]
[376514770,1754004642147,-460.0,0.00020273,2]
[376514771,1754004642156,-460.0,0.00020273,2]
[376514772,1754004642166,-152.132842,0.00020273,2]
[376514773,1754004642175,-460.0,0.00020273,2]
[376514774,1754004642185,-872.56,0.00020273,2]
[376514775,1754004642194,-460.0,0.00020273,2]
[376514776,1754004642203,-641.01803559,0.00020273,2]
[376514777,1754004642245,-268.03,0.00019452,2]
[376514778,1754004642257,-578.48196441,0.00020273,2]
[376514779,1754004642266,-48.7360922,0.00020273,2]
[376514780,1754004642278,-411.2639078,0.00020273,2]
[376514781,1754004642288,-460.0,0.00020273,2]
[376514782,1754004642297,-460.0,0.00020273,2]
[376514783,1754004642307,-460.0,0.00020273,2]
[376514784,1754004642316,-460.0,0.00020273,2]
[376514785,1754004642326,-151.0,0.00020273,2]
[376514786,1754004642335,-682.86,0.00020273,2]
[376514787,1754004642344,-996.42,0.00020273,2]
[376514788,1754004642354,-460.0,0.00020273,2]
[376514789,1754004642363,-460.0,0.00020273,2]
[376514790,1754004642372,-3739.87,0.00020273,2]
[376514791,1754004642381,-460.0,0.00020273,2]
[376514792,1754004642390,-460.0,0.00020273,2]
[376514793,1754004642400,-460.0,0.00020273,2]
[376514794,1754004642409,-71.81677873,0.00020273,2]
[376514818,1754004644079,-774.79322127,0.00020273,2]
[376514819,1754004644088,-460.0,0.00020273,2]
[376514820,1754004644098,-460.0,0.00020273,2]
[376514821,1754004644109,-151.0,0.00020273,2]
[376514822,1754004644119,-460.0,0.00020273,2]
[376514823,1754004644128,-460.0,0.00020273,2]
[376514824,1754004644138,-460.0,0.00020273,2]
[376514825,1754004644148,-460.0,0.00020273,2]
[376514826,1754004644158,-460.0,0.00020273,2]
[376514827,1754004644167,-1850.39,0.00020273,2]
[376514828,1754004644177,-873.75,0.00020273,2]
[376514829,1754004644187,-821.02,0.00020273,2]
[376514830,1754004644197,-460.0,0.00020273,2]
[376514831,1754004644207,-538.83,0.00020273,2]
[376514833,1754004644216,-478.9,0.00020384,3]
[376514835,1754004644226,-193.99906325,0.0002039,2]
[376514837,1754004644240,-160.0,0.00020408,2]
[376514839,1754004644250,-2332.3,0.00020547,2]
[376514840,1754004644260,-460.0,0.00020547,2]
[376514841,1754004644269,-568.87,0.00020547,2]
[376514842,1754004644279,-714.6,0.00020547,2]
[376514843,1754004644289,-460.0,0.00020547,2]
[376514844,1754004644298,-460.0,0.00020547,2]
[376514845,1754004644309,-636.62,0.00020547,2]
[376514846,1754004644318,-460.0,0.00020547,2]
[376514847,1754004644328,-151.0,0.00020547,2]
[376514848,1754004644337,-460.0,0.00020547,2]
[376514849,1754004644347,-151.0,0.00020547,2]
[376514850,1754004644356,-180.78833913,0.00020547,2]
[376514851,1754004644366,-460.0,0.00020547,2]
[376514852,1754004644486,-151.0,0.00020547,2]
[376514853,1754004644499,-460.0,0.00020547,2]
[376514854,1754004644509,-872.56,0.00020547,2]
[376514855,1754004644518,-460.0,0.00020547,2]
[376514856,1754004644527,-1219.5,0.00020547,2]
[376514857,1754004644536,-460.0,0.00020547,2]
[376514858,1754004644546,-460.0,0.00020547,2]
[376514859,1754004644554,-460.0,0.00020547,2]
[376514860,1754004644563,-460.0,0.00020547,2]
[376514861,1754004644572,-460.0,0.00020547,2]
[376514862,1754004644582,-682.86,0.00020547,2]
[376514863,1754004644591,-996.42,0.00020547,2]
[376514864,1754004644600,-460.0,0.00020547,2]
[376514865,1754004644610,-460.0,0.00020547,2]
[376514866,1754004644619,-3739.87,0.00020547,2]
[376514867,1754004644628,-460.0,0.00020547,2]
[376514868,1754004644638,-460.0,0.00020547,2]
[376514869,1754004644647,-460.0,0.00020547,2]
[376514870,1754004644656,-846.61,0.00020547,2]
[376514871,1754004644665,-460.0,0.00020547,2]
[376514872,1754004644674,-460.0,0.00020547,2]
[376514873,1754004644683,-151.0,0.00020547,2]
[376514874,1754004644693,-151.0,0.00020547,2]
[376514875,1754004644702,-460.0,0.00020547,2]
[376514876,1754004644711,-460.0,0.00020547,2]
[376514877,1754004644720,-460.0,0.00020547,2]
[376514878,1754004644730,-460.0,0.00020547,2]
[376514879,1754004644739,-460.0,0.00020547,2]
[376514880,1754004644749,-1850.39,0.00020547,2]
[376514881,1754004644758,-873.75,0.00020547,2]
[376514882,1754004644768,-821.02,0.00020547,2]
[376514883,1754004644777,-460.0,0.00020547,2]
[376514884,1754004644786,-538.83,0.00020547,2]
[376514885,1754004644795,-151.0,0.00020624,2]
[376514886,1754004644804,-151.0,0.00020624,2]
[376514887,1754004644814,-151.0,0.00020624,2]
[376514888,1754004644823,-171.66856868,0.00020734,2]
[376514889,1754004644833,-420.0,0.00020762,2]
[376514890,1754004644842,-430.1392862,0.00020767,2]
[376514891,1754004644851,-462.78257143,0.0002082,2]
[376514892,1754004644861,-500.0,0.0002082,2]
[376514893,1754004644870,-500.0,0.0002082,2]
[376514894,1754004644879,-500.0,0.0002082,2]
[376514895,1754004644889,-500.0,0.0002082,2]
[376514896,1754004644898,-500.0,0.0002082,2]
[376514897,1754004644909,-500.0,0.0002082,2]
[376514898,1754004644918,-500.0,0.0002082,2]
[376514899,1754004644927,-500.0,0.0002082,2]
[376514900,1754004644936,-500.0,0.0002082,2]
[376514901,1754004644945,-2332.3,0.00020821,2]
[376514902,1754004644954,-460.0,0.00020821,2]
[376514903,1754004644963,-568.87,0.00020821,2]
[376514904,1754004644973,-151.0,0.00020821,2]
[376514905,1754004644982,-714.6,0.00020821,2]
[376514906,1754004644991,-460.0,0.00020821,2]
[376514907,1754004645002,-460.0,0.00020821,2]
[376514908,1754004645011,-460.0,0.00020821,2]
[376514909,1754004645020,-636.62,0.00020821,2]
[376514910,1754004645030,-460.0,0.00020821,2]
[376514911,1754004645039,-460.0,0.00020821,2]
[376514912,1754004645049,-460.0,0.00020821,2]
[376514913,1754004645058,-872.56,0.00020821,2]
[376514914,1754004645068,-460.0,0.00020821,2]
[376514915,1754004645077,-1219.5,0.00020821,2]
[376514916,1754004645086,-460.0,0.00020821,2]
[376514917,1754004645096,-460.0,0.00020821,2]
[376514918,1754004645105,-460.0,0.00020821,2]
[376514919,1754004645114,-460.0,0.00020821,2]
[376514920,1754004645123,-460.0,0.00020821,2]
[376514921,1754004645132,-682.86,0.00020821,2]
[376514922,1754004645141,-996.42,0.00020821,2]
[376514923,1754004645150,-460.0,0.00020821,2]
[376514924,1754004645159,-460.0,0.00020821,2]
[376514925,1754004645169,-3739.87,0.00020821,2]
[376514926,1754004645178,-460.0,0.00020821,2]
[376514927,1754004645186,-460.0,0.00020821,2]
[376514928,1754004645195,-460.0,0.00020821,2]
[376514929,1754004645204,-846.61,0.00020821,2]
[376514930,1754004645214,-460.0,0.00020821,2]
[376514931,1754004645226,-460.0,0.00020821,2]
[376514932,1754004645240,-460.0,0.00020821,2]
[376514933,1754004645249,-460.0,0.00020821,2]
[376514934,1754004645258,-460.0,0.00020821,2]
[376514935,1754004645267,-460.0,0.00020821,2]
[376514936,1754004645277,-460.0,0.00020821,2]
[376514937,1754004645287,-1850.39,0.00020821,2]
[376514938,1754004645297,-873.75,0.00020821,2]
[376514939,1754004645306,-821.02,0.00020821,2]
[376514940,1754004645316,-538.83,0.00020821,2]
[376514941,1754004645325,-460.0,0.00020821,2]
[376514943,1754004645334,-407.0,0.00020885,2]
[376514944,1754004645343,-957.12311074,0.000209,4]
[376514945,1754004645352,-478.9,0.00020947,3]
[376514946,1754004645368,-260.0,0.00020956,2]
[376514947,1754004645382,-160.0,0.00021016,2]
[376514948,1754004645391,-160.0,0.00021016,2]
[376514949,1754004645400,-841.37753757,0.00021016,2]
[376514950,1754004645409,-216.18812866,0.00021016,2]
[376514951,1754004645418,-151.0,0.00021094,2]
[376514952,1754004645427,-151.0,0.00021094,2]
[376514953,1754004645436,-2332.3,0.00021095,2]
[376514954,1754004645444,-460.0,0.00021095,2]
[376514955,1754004645453,-568.87,0.00021095,2]
[376514956,1754004645462,-714.6,0.00021095,2]
[376514957,1754004645471,-460.0,0.00021095,2]
[376514958,1754004645480,-460.0,0.00021095,2]
[376514959,1754004645490,-460.0,0.00021095,2]
[376514961,1754004645500,-636.62,0.00021095,2]
[376514963,1754004645509,-460.0,0.00021095,2]
[376514964,1754004645518,-460.0,0.00021095,2]
[376514966,1754004645528,-460.0,0.00021095,2]
[376514968,1754004645538,-872.56,0.00021095,2]
[376514972,1754004645548,-460.0,0.00021095,2]
[376514975,1754004645557,-1219.5,0.00021095,2]
[376514977,1754004645567,-460.0,0.00021095,2]
[376514981,1754004645576,-460.0,0.00021095,2]
[376514983,1754004645586,-460.0,0.00021095,2]
[376514984,1754004645595,-460.0,0.00021095,2]
[376514986,1754004645604,-460.0,0.00021095,2]
[376514988,1754004645614,-682.86,0.00021095,2]
[376514990,1754004645623,-996.42,0.00021095,2]
[376514991,1754004645632,-460.0,0.00021095,2]
[376514992,1754004645641,-460.0,0.00021095,2]
[376514993,1754004645650,-3739.87,0.00021095,2]
[376514994,1754004645659,-460.0,0.00021095,2]
[376514995,1754004645668,-460.0,0.00021095,2]
[376514996,1754004645677,-460.0,0.00021095,2]
[376514997,1754004645687,-846.61,0.00021095,2]
[376514998,1754004645696,-460.0,0.00021095,2]
[376514999,1754004645706,-460.0,0.00021095,2]
[376515000,1754004645719,-460.0,0.00021095,2]
[376515001,1754004645729,-460.0,0.00021095,2]
[376515002,1754004645739,-460.0,0.00021095,2]
[376515003,1754004645749,-460.0,0.00021095,2]
[376515004,1754004645759,-460.0,0.00021095,2]
[376515005,1754004645768,-1850.39,0.00021095,2]
[376515006,1754004645777,-873.75,0.00021095,2]
[376515007,1754004645786,-821.02,0.00021095,2]
[376515009,1754004645796,-538.83,0.00021095,2]
[376515010,1754004645805,-460.0,0.00021095,2]
[376515011,1754004645814,-500.0,0.00021099,2]
[376515012,1754004645824,-957.12311054,0.00021107,4]
[376515013,1754004645833,-232.31808377,0.00021164,2]
[376515014,1754004645845,-150.0,0.00021269,2]
[376515015,1754004645854,-500.0,0.00021292,2]
[376515016,1754004645863,-957.12311054,0.00021314,5]
[376515017,1754004645873,-200.0,0.00021336,15]
[376515018,1754004645882,-200.0,0.00021336,15]
[376515019,1754004645892,-200.0,0.00021336,15]
[376515020,1754004645902,-200.0,0.00021336,15]
[376515021,1754004645911,-320.0,0.00021336,15]
[376515022,1754004645921,-171.097626,0.00021355,2]
[376515023,1754004645930,-2332.3,0.00021369,2]
[376515024,1754004645939,-460.0,0.00021369,2]
[376515025,1754004645948,-568.87,0.00021369,2]
[376515026,1754004645958,-151.0,0.00021369,2]
[376515027,1754004645967,-151.0,0.00021369,2]
[376515028,1754004645976,-714.6,0.00021369,2]
[376515029,1754004645986,-460.0,0.00021369,2]
[376515030,1754004645995,-460.0,0.00021369,2]
[376515031,1754004646005,-467.05251403,0.00021369,2]
[376515032,1754004646014,-636.62,0.00021369,2]
[376515033,1754004646023,-460.0,0.00021369,2]
[376515034,1754004646034,-193.766,0.00021369,2]
[376515035,1754004646044,-460.0,0.00021369,2]
[376515036,1754004646053,-460.0,0.00021369,2]
[376515037,1754004646063,-872.56,0.00021369,2]
[376515038,1754004646072,-460.0,0.00021369,2]
[376515039,1754004646082,-1219.5,0.00021369,2]
[376515040,1754004646091,-460.0,0.00021369,2]
[376515041,1754004646100,-460.0,0.00021369,2]
[376515042,1754004646109,-460.0,0.00021369,2]
[376515043,1754004646119,-460.0,0.00021369,2]
[376515044,1754004646128,-460.0,0.00021369,2]
[376515045,1754004646137,-682.86,0.00021369,2]
[376515046,1754004646146,-996.42,0.00021369,2]
[376515047,1754004646155,-460.0,0.00021369,2]
[376515048,1754004646165,-460.0,0.00021369,2]
[376515049,1754004646174,-3739.87,0.00021369,2]
[376515050,1754004646183,-460.0,0.00021369,2]
[376515051,1754004646192,-460.0,0.00021369,2]
[376515052,1754004646202,-460.0,0.00021369,2]
[376515053,1754004646211,-846.61,0.00021369,2]
[376515054,1754004646220,-460.0,0.00021369,2]
[376515055,1754004646230,-460.0,0.00021369,2]
[376515056,1754004646244,-151.0,0.00021369,2]
[376515057,1754004646254,-151.0,0.00021369,2]